Cogmind - Beta 17 @@@ ROGUE MODE // 2026.07.18 @ 20:27:11 Player: IsAway Result: Destroyed self with Mini Grenade Launcher Performance ------------- Evolutions (0) 0 Regions Visited (2) 400 Robots Destroyed (12) 60 Value Destroyed (285) 285 Prototype IDs (0) 0 Alien Tech Used (0) 0 Bonus (81) 81 TOTAL SCORE: 826 Bonus ------- Follower Combat Kills 81 Cogmind --------- Core Integrity 0/250 Matter 240/300 Energy 95/100 System Corruption 0% Temperature Cool (0) Movement Rolling (95) Ox1 Location -10/Mines Parts ------- > --- POWER (1) -------- (None) > --- PROPULSION (2) --- Aluminum Leg Wheel > --- UTILITY (2) ------ Medium Storage Unit Transport Network Coupler > --- WEAPON (2) ------- Mini Grenade Launcher > --- INVENTORY (10) --- Ion Engine Light Nuclear Core Wheel Improved Heat Sink Improved Terrain Scanner Mini Grenade Launcher Plasma Cutter Peak State ------------ > --- POWER ------------ Light Nuclear Core > --- PROPULSION ------- Aluminum Leg Aluminum Leg > --- UTILITY ---------- Medium Storage Unit Transport Network Coupler > --- WEAPON ----------- Light Assault Rifle Welding Torch > --- INVENTORY -------- Ion Engine Light Nuclear Core Aluminum Leg Wheel Improved Heat Sink Improved Terrain Scanner Mini Grenade Launcher Mini Grenade Launcher Plasma Cutter Plasma Cutter [Rating: 11] Favorites ----------- Power Ion Engine Engine Ion Engine Power Core Light Nuclear Core Propulsion Aluminum Leg Leg Aluminum Leg Wheel Wheel Utility Transport Network Coupler Device Improved Terrain Scanner Storage Medium Storage Unit Processor Transport Network Coupler Weapon Light Assault Rifle Energy Gun Medium Laser Ballistic Gun Light Assault Rifle Launcher Mini Grenade Launcher Special Weapon Welding Torch Build | -11 -10 -10 ------- Run | Yrd Mat Min Slots Evolved . | . . . Power . | . . . Propulsion . | . . . Utility . | . . . Weapon . | . . . Parts Attached 24 | 8 8 8 Power 2 | 1 . 1 Engine 1 | 1 . . Core 1 | . . 1 Reactor . | . . . Propulsion 10 | 3 2 5 Treads . | . . . Leg 8 | 2 2 4 Wheel 2 | 1 . 1 Hover . | . . . Flight . | . . . Utility 4 | 2 2 . Device 1 | 1 . . Storage 2 | 1 1 . Processor 1 | . 1 . Hackware . | . . . Protection . | . . . Artifact . | . . . Weapon 8 | 2 4 2 Energy Gun 3 | 2 1 . Energy Cannon . | . . . Ballistic Gun 1 | . 1 . Ballistic Cannon . | . . . Launcher 1 | . . 1 Special Weapon 3 | . 2 1 Impact Weapon . | . . . Slashing Weapon . | . . . Piercing Weapon . | . . . Special Melee Weapon . | . . . Unidentified Prototypes . | . . . Parts Lost 9 | . 3 6 Power 1 | . . 1 Propulsion 2 | . . 2 Utility . | . . . Weapon 6 | . 3 3 Highest Loss Streak 6 | . 1 6 To Critical Strikes . | . . . Average Backups 8 | 3 8 9 Power 1 | . 1 2 Propulsion 2 | 1 2 1 Utility 1 | . 2 2 Weapon 1 | . 1 1 Tool/Special . | . . . Unused Backups 12 | . 6 6 Power 2 | . . 2 Propulsion 5 | . 5 . Utility 3 | . 1 2 Weapon 1 | . . 1 Tool/Special 1 | . . 1 Average Slot Usage (%) 99 | . 99 97 Engine 10 | . 14 4 Core 2 | . . 9 Leg 27 | . 28 27 Device 4 | . 7 . Storage 14 | . 14 14 Processor 9 | . 6 14 Energy Gun 8 | . 12 . Ballistic Gun 11 | . 11 13 Special Weapon 7 | . 4 14 Peak Build Rating 11 | 9 10 11 Average Rating 8 | 5 8 9 On Entrance 5 | . 9 8 Avg Prop Armor Cover (%) . | . . . Naked Turns . | . . . Heaviest Build 18 | 15 18 17 Greatest Support 20 | 20 20 20 Greatest Overweight (x) 4 | 4 . 3 Average Overweight (x) . | . . . Largest Inventory Capacity 10 | 8 10 10 Average Capacity 9 | 7 8 10 Most Carried 10 | 6 10 10 Average Carried 8 | 3 8 9 Final Capacity 10 | 8 10 10 Final Carried 10 | 6 10 7 Class Distribution -------------------- 100% | Mutant Dominant Class ---------------- Mutant | -10/Materials Mutant | -10/Mines Resources | -11 -10 -10 ----------- Run | Yrd Mat Min Matter Collected 420 | 98 290 32 Remotely . | . . . Salvage Created 465 | 131 334 . Parts 22 | 5 17 . Haulers Intercepted . | . . . Recyclers Shooed . | . . . Parts Field Recycled . | . . . Retrieved Matter . | . . . Parts Self-Destructed . | . . . Prevented . | . . . Parts Restored . | . . . Kills | -11 -10 -10 ------- Run | Yrd Mat Min Combat Hostiles Destroyed 8 | . 7 1 Guns 5 | . 5 . AOE 2 | . 1 1 Classes Destroyed 6 | 2 3 1 Worker 1 | . 1 . Tunneler 2 | 2 . . Recycler 1 | 1 . . Watcher 1 | . 1 . Grunt 7 | . 7 . Assembled 1 | . . 1 Best Kill Streak 4 | 3 4 1 Combat Bots Only 3 | . 3 1 Max Kills in Single Turn 1 | 1 1 1 Gunslinging . | . . . Exploded 1 | . 1 1 Melee . | . . . Uniques/NPCs Destroyed . | . . . Combat | -11 -10 -10 -------- Run | Yrd Mat Min Hostile Shots Fired 107 | . 76 31 Missed 34 | . 27 7 Hits 73 | . 49 24 Melee 1 | . . 1 Projectile 72 | . 49 23 AOE 10 | . . 10 Damage Taken 1214 | . 568 646 Core 259 | . 85 174 Absorbed by Shields . | . . . Core Remaining (%) 100 | 100 . . Volleys Fired 66 | 9 50 7 Largest 2 | 2 2 1 Hottest 120 | 90 120 30 Shots Fired 97 | 18 72 7 Gun 87 | 18 67 2 Cannon . | . . . Launcher 3 | . . 3 Special 7 | . 5 2 Kinetic 20 | . 18 2 Thermal 37 | 9 26 2 Explosive 3 | . . 3 Electromagnetic 37 | 9 28 . Robot Hit Streak 7 | 3 7 6 Robot Miss Streak 5 | 2 5 1 Penetration Max . | . . . Secondary Targets 1 | . 1 . Max Gunslinging Chain 1 | . 1 . Shots Hit Robots 56 | 10 40 6 Core Hits 21 | 4 15 2 Critical Kills 1 | . 1 . Critical Parts Destroyed . | . . . Critical Strikes 3 | . 3 . Burn 2 | . 2 . Destroy 1 | . 1 . Melee Attacks . | . . . Impact . | . . . Slashing . | . . . Piercing . | . . . Sneak Attacks . | . . . Combat Hostiles . | . . . Follow-up Attacks . | . . . Damage Inflicted 824 | 162 560 102 Guns 672 | 137 521 14 Cannons . | . . . Explosions 120 | 25 31 64 Melee . | . . . Ramming 8 | . 8 . Kinetic 78 | . 64 14 Thermal 303 | 76 203 24 Explosive 64 | . . 64 Electromagnetic 371 | 86 285 . Impact . | . . . Slashing . | . . . Piercing . | . . . Highest Corruption . | . . . Average Corruption . | . . . Corruption Purged . | . . . Corruption Blocked . | . . . Overload Shots . | . . . Overflow Damage 22 | . . 22 Projectiles . | . . . Explosions 22 | . . 22 Melee . | . . . Knockbacks . | . . . Impact . | . . . Kinetic . | . . . Secondary . | . . . Self-Inflicted Damage 64 | . . 64 Shots 2 | . . 2 Rammed . | . . . Targets Rammed 1 | . 1 . Kicked 1 | . 1 . Crushed . | . . . Highest Temperature 258 | 240 258 . Average Temperature 81 | 112 73 . Received Heat Transfer 327 | . 294 33 Effects 1 | . 1 . Interference 1 | . 1 . Siege Activations . | . . . Martial Activations . | . . . Shielding Activations . | . . . Robots Disrupted . | . . . Combat Hostiles . | . . . Robots Corrupted 1 | . 1 . Combat Hostiles 1 | . 1 . Parts Fried . | . . . Impact Corruptions . | . . . Robots Melted . | . . . Combat Hostiles . | . . . Parts Melted 1 | . 1 . Heat Transferred 988 | 198 716 74 Parts Sabotaged . | . . . Parts Stolen . | . . . Parts Stripped . | . . . Power Chain Reactions 2 | 1 1 . Alert | -11 -10 -10 ------- Run | Yrd Mat Min Maximum Alert Level . | . . . Low Security (%) 100 | 100 100 100 Level 1 . | . . . Level 2 . | . . . Level 3 . | . . . Level 4 . | . . . Level 5 . | . . . High Security . | . . . Max Security . | . . . Peak Influence 124 | 10 124 94 Initial . | . . . Average 25 | 1 26 29 Influence Increases 426 | 15 231 180 Destroy 0b10 Robot/C 240 | . 140 100 Destroy 0b10 Robot/NC 25 | 15 10 . Destroy Leader 42 | . 22 20 Allied During Kill 14 | . . 14 Successful Hack 8 | . 8 . Disable Machine 15 | . 15 . Destroy Structure 7 | . 6 1 Lose Combat Pursuer 75 | . 30 45 Influence Decreases 425 | 15 231 179 Time Decay 370 | 15 211 144 Lost Part 35 | . 20 15 Lost Ally 20 | . . 20 Squads Dispatched 4 | . 4 . Investigation 3 | . 3 . Extermination . | . . . Reinforcement 1 | . 1 . Assault . | . . . Garrison . | . . . Intercept . | . . . Searches Triggered . | . . . Construction Impeded . | . . . Haulers Reinforced . | . . . Active Scanning Responses . | . . . Cargo Convoy Interrupts . | . . . Stealth | -11 -10 -10 --------- Run | Yrd Mat Min Distress Signals 1 | . 1 . Communications Jammed . | . . . Distress Signals . | . . . Times Spotted 32 | . 17 15 Peak Tracking Total 4 | . 4 4 Tactical Retreats 3 | . 1 2 Traps | -11 -10 -10 ------- Run | Yrd Mat Min Traps Triggered 2 | . 2 . Indirectly . | . . . Trap Hack Attempts . | . . . Triggered . | . . . Disarmed . | . . . Reprogrammed . | . . . Reused . | . . . Traps Extracted . | . . . Installed . | . . . Triggered . | . . . Machines | -11 -10 -10 ---------- Run | Yrd Mat Min Machines Disabled 1 | . 1 . Max in Single Turn 1 | . 1 . Machines Repaired . | . . . Machines Dismantled . | . . . Machines Sabotaged . | . . . Overloaded Fab Kills . | . . . Hacking | -11 -10 -10 --------- Run | Yrd Mat Min Machines Accessed 2 | . 2 . Terminals 1 | . 1 . Fabricators . | . . . Repair Stations . | . . . Recycling Units 1 | . 1 . Scanalyzers . | . . . Garrison Access . | . . . Total Hacks 4 | . 4 . Successful 2 | . 2 . Failed 2 | . 2 . Catastrophic 1 | . 1 . Database Lockouts . | . . . Manual 2 | . 2 . Terminals 2 | . 2 . Fabricators . | . . . Repair Stations . | . . . Recycling Units 2 | . 2 . Scanalyzers . | . . . Garrison Access . | . . . Terminal Hacks 1 | . 1 . Branch Access Points 1 | . 1 . Fabricator Hacks . | . . . Repair Station Hacks . | . . . Recycling Unit Hacks 1 | . 1 . Retrieve Components 1 | . 1 . Scanalyzer . | . . . Garrison Access Hacks . | . . . Unauthorized Hacks . | . . . Terminals . | . . . Fabricators . | . . . Repair Stations . | . . . Recycling Units . | . . . Scanalyzers . | . . . Garrison Access . | . . . Data Cores Recovered . | . . . Used . | . . . Hacking Detections 2 | . 2 . Full Trace Events 1 | . 1 . Feedback Events . | . . . Feedback Blocked . | . . . Robot Schematics Acquired . | . . . Robots Built . | . . . Authchips . | . . . Time . | . . . Total Robot Build Rating . | . . . Part Schematics Acquired . | . . . Parts Built . | . . . Authchips . | . . . Time . | . . . Total Part Build Rating . | . . . Part Studies Acquired . | . . . Parts Repaired . | . . . Time . | . . . Parts Recycled . | . . . Recycled Matter . | . . . Retrieved Matter . | . . . Retrieved Components 9 | . 9 . Parts Scanalyzed . | . . . Part Schematics Acquired . | . . . Parts Damaged . | . . . Bothacking | -11 -10 -10 ------------ Run | Yrd Mat Min Used RIF Installer . | . . . Robots Hacked . | . . . Non-combat . | . . . Combat . | . . . Robot Hacks Applied . | . . . Relay Couplers Released . | . . . Fabnet Peak Effective % . | . . . Robots Rewired . | . . . Allies Hacked . | . . . Hacks Repelled . | . . . Allies | -11 -10 -10 -------- Run | Yrd Mat Min Total Allies 3 | . . 3 Largest Group 3 | . . 3 Highest-Rated Group 40 | . . 40 Highest-Rated Ally 16 | . . 16 Total Orders . | . . . Ally Attacks 40 | . . 40 Total Damage 341 | . . 341 Kills 6 | . . 6 Allies Corrupted . | . . . Allies Melted . | . . . Intel | -11 -10 -10 ------- Run | Yrd Mat Min Active Infowar (turns) 1134 | 18 672 444 Terrain 231 | 18 213 . T.N.C. 903 | . 459 444 Robot Analysis Total . | . . . Derelict Logs Recovered . | . . . Drone Launches . | . . . Drone Recoveries . | . . . Exploration | -11 -10 -10 ------------- Run | Yrd Mat Min Turns Passed 1484 | 96 944 444 Spaces Moved 948 | 44 641 263 Core 7 | 4 . 3 Treads . | . . . Legs 933 | 32 641 260 Wheels 8 | 8 . . Hover . | . . . Flight . | . . . Fastest Speed 50 | 50 120 120 Average Speed 120 | 118 120 121 Slowest Speed 250 | 250 120 200 Overloaded Moves . | . . . Propulsion Burnouts . | . . . Robots Hopped . | . . . Potential Cave-ins . | . . . Cave-ins Triggered . | . . . Exploration Rate (%) 47 | 4 95 43 Regions Visited 2 Branch Regions 1 Pre-discovered Areas . | . . . Known Exits Taken 1 | . 1 . Unknown Exits Taken 1 | 1 . . Scrap Searched . | . . . Spaces Dug 4 | . 4 . Terrain Destroyed 24 | 3 5 16 Melee . | . . . Projectile 4 | . 4 . AOE 20 | 3 1 16 Terrain Rammed . | . . . Walls Destroyed . | . . . Machines Disabled . | . . . Actions | -11 -10 -10 --------- Run | Yrd Mat Min Total 1188 | 66 741 381 Wait 109 | . 12 97 Move 946 | 43 640 263 Hop . | . . . Pick Up 20 | 5 14 1 Fast Attach 11 | 8 2 1 Attach 5 | . 2 3 Detach 2 | 1 1 . Swap 11 | . 7 4 Drop 17 | . 12 5 Fire 66 | 9 50 7 Melee . | . . . Ram . | . . . Kick 1 | . 1 . Crush . | . . . Escape Stasis . | . . . Rewire . | . . . Trap . | . . . Miscellaneous . | . . . Route ------- -11/Scrapyard -10/Materials (discovered 5 exits: [*Mat x3] / *Min x2) -10/Mines History --------- Turn | Location | Event 19 | -11/Scrapyard | Discovered new exit (range 15) 97 | -11/Scrapyard | Entered Materials 150 | -10/Materials | Identified exit to Mines 309 | -10/Materials | Build established: Mutant 468 | -10/Materials | Discovered new exit (range 8) 692 | -10/Materials | Discovered new exit (range 13) 841 | -10/Materials | Discovered new exit (range 10) 1041 | -10/Materials | Entered Mines 1046 | -10/Mines | Assisted by bots powering up and referring to "LRC-V3" 1258 | -10/Mines | Found a Scrap Suit stashed away for nefarious purposes 1373 | -10/Mines | Assembled infested the area 1378 | -10/Mines | Assisted by a Guerilla fighting off Assembled 1464 | -10/Mines | Core integrity fell below 50% 1471 | -10/Mines | Core integrity fell below 20% 1485 | -10/Mines | Destroyed self with Mini Grenade Launcher Last Messages --------------- The unstable cave ceiling collapses. Aluminum Leg destroyed. The unstable cave ceiling collapses. K-01 Serf collects debris. D-53 Grenadier destroyed. The unstable cave ceiling collapses. K-01 Serf collects debris. The unstable cave ceiling collapses. K-01 Serf collects debris. D-53 Grenadier destroyed. The unstable cave ceiling collapses. K-01 Serf collects debris. The unstable cave ceiling collapses. Acquired Wheel. K-01 Serf destroyed. Plasma Cutter destroyed. Destroyed Plasma Cutter. The unstable cave ceiling collapses. Destroyed Asb. Hover Unit. as-34649 destroyed. Map ----- +----------------------------------------------------+ | ???????????????????????????????? #????# # | | ????????????????????????????????? #?## # | | ?????????????????????????????????? ## #? | | ???????????????????????????????????# #?? | | ????????????????????????????????????# #??? | | ?????????????????????????????????????# #?## | | ??????????????????????????????????????# #?#% | | ?????????????????????????????########### * #??#* | | ?????????????????????????????# %##??#* | | ?????????????????????????????# #########% #???# | | ?????????????????????????????# #???????#![##### | | ?????????????????????????????# #???????# | | ??????????????????????######?# #???????######### | | ?????????????????????## ### #???????????????? | | ????????????????????## #???????????????? | | ???????????????????## #???????????????? | | ??#####???????????## # #???????????????? | | ??# ##??????????# #???????????????? | | ??## ###????????## # # #???????????????? | | ???## ##??####?# #%###?????????????# | | ????# #?## #### ##??????????? # | | ????# ### #### # ######????? | | ????# ## # ##??? | | ????## ## ## ##?# | | ?????# ## ### ## ## # | | ?????## ##?# @ #### #? | | ??????## ##?# #??# ## """ #? | | ???????## # #??## #### """ #? | | ???????## ??####??# """ #? | | ??###?## # #???????## # | | ?## ## # # ##????????##### | | ?# ## #?????????????? | | ?# ## ### ###??????????????? | | ?## #### #?# a%# ###??????????????????# | | ??## #??## ##? # # #????????????????????? | | ???## ###???# #?? #????????????????????? | | ????# #?????# #?# ##??????????????????? | | ????# #?##### #?# ???????????????????? | | ????# ### ## ### # #???????????????????? | | ????# a #?#????????????????????? | | ????##### ! #???????????????????????? | | ????????# ?????????????????? | | ???????# #### ?????????????????? | | ???????# ##??## ########??????????????????? | | ???????#####????######?????????????????????????? | | ???????????????????????????????????????????????? | | ???????????????????????????????????????????????? | | ???????????????????????????????????????????????? | | ???????????????????????????????????????????????? | | ???????????????????????????????????????????????? | +----------------------------------------------------+ Best States ------------- Heat Dissipation 25 Energy Generation 14 Energy Capacity 250 Matter Stores 300 Matter Capacity 300 Sight Range 16 Terrain Scan Range 16 Terrain Scan Density 10 Evasion (%) 55 Item Schematics ----------------- None Robot Schematics ------------------ None Fabricated ------------ Nothing Repaired ---------- Nothing Studied --------- None Alien Tech Used ----------------- None Achievements -------------- None Challenges ------------ None Game ------ Seed HeatVariableMegatreads Manual? 0 Play Time 00:15:09 Cumulative 50.9 hours Start 2026.07.18 @ 20:12:56 End 2026.07.18 @ 20:27:11 Sessions 1 Manual Loads 0 Difficulty Rogue Special Mode None Game No. 64 Rogue 64 Adventurer 0 Explorer 0 Win Type - Total 0 Types 0/0/0/0/0/0/0/0/0/0 Lore% 42 Gallery% 31 Achievement% 28 Wizard Run 0 Options --------- Layout 1 ASCII 0 Keyboard 0 Movement Mouse Keybinds 0 Fullscreen 2 Font 18/SmallcapsGlow Map View 51x41 Zoom Use 0% Tactical HUD 0 Map Filters NONE Filters NONE Steam 1 RUN: bdfb8957-bd1f-416d-a480-03ae31c1c642